Cogmind - Beta 16 @@@ ROGUE MODE // 2025.10.28 @ 16:46:42 Player: celerysam Result: Destroyed by S3-0KZ(R) with Subdweller Laser Performance ------------- Evolutions (0) 0 Regions Visited (2) 400 Robots Destroyed (20) 100 Value Destroyed (554) 554 Prototype IDs (0) 0 Alien Tech Used (0) 0 Bonus (0) 0 TOTAL SCORE: 1054 Bonus ------- None Cogmind --------- Core Integrity 0/250 Matter 265/300 Energy 200/200 System Corruption 1% Temperature Cool (69) Movement Rolling (195) Ox7 Location -10/Subcaves Parts ------- > --- POWER (1) -------- Subdweller Power Source > --- PROPULSION (2) --- Armored Wheel > --- UTILITY (2) ------ Disposable Heat Sink Huge Storage Unit > --- WEAPON (2) ------- Spread Laser Spread Laser > --- INVENTORY (25) --- Light Ion Engine Wheel Compact Wheel Compact Wheel Armored Wheel Armored Wheel VTOL Module VTOL Module VTOL Module VTOL Module Small Storage Unit Large Storage Unit Transport Network Coupler Medium Laser Particle Gun Datajack Mining Laser Mining Laser Hammer Peak State ------------ > --- POWER ------------ Subdweller Power Source > --- PROPULSION ------- Armored Wheel Armored Wheel > --- UTILITY ---------- Disposable Heat Sink Huge Storage Unit > --- WEAPON ----------- Spread Laser Spread Laser > --- INVENTORY -------- Light Ion Engine Wheel Compact Wheel Compact Wheel Armored Wheel Armored Wheel VTOL Module VTOL Module VTOL Module VTOL Module Small Storage Unit Large Storage Unit Transport Network Coupler Medium Laser Particle Gun Datajack Mining Laser Mining Laser Hammer [Rating: 15] Favorites ----------- Power Ion Engine Engine Ion Engine Propulsion Armored Wheel Treads Light Treads Leg Aluminum Leg Wheel Armored Wheel Utility Huge Storage Unit Device Heat Sink Storage Huge Storage Unit Weapon Spread Laser Energy Gun Spread Laser Special Weapon Mining Laser Build | -11 -10 -10 ------- Run | Yrd Mat Sub Slots Evolved . | . . . Power . | . . . Propulsion . | . . . Utility . | . . . Weapon . | . . . Parts Attached 22 | 7 10 5 Power 3 | 1 1 1 Engine 3 | 1 1 1 Core . | . . . Reactor . | . . . Propulsion 7 | 2 4 1 Treads 2 | . 2 . Leg 2 | 2 . . Wheel 3 | . 2 1 Hover . | . . . Flight . | . . . Utility 5 | 1 3 1 Device 2 | . 1 1 Storage 3 | 1 2 . Processor . | . . . Hackware . | . . . Protection . | . . . Artifact . | . . . Weapon 7 | 3 2 2 Energy Gun 6 | 3 2 1 Energy Cannon . | . . . Ballistic Gun . | . . . Ballistic Cannon . | . . . Launcher . | . . . Special Weapon 1 | . . 1 Impact Weapon . | . . . Slashing Weapon . | . . . Piercing Weapon . | . . . Special Melee Weapon . | . . . Unidentified Prototypes . | . . . Parts Lost 5 | . 1 4 Power 2 | . 1 1 Propulsion 2 | . . 2 Utility . | . . . Weapon 1 | . . 1 Highest Loss Streak 2 | . 1 2 To Critical Strikes 1 | . . 1 Average Backups 16 | 4 16 20 Power . | . 1 1 Propulsion 8 | 3 8 9 Utility 2 | . 1 3 Weapon 4 | . 4 5 Tool/Special . | . . . Unused Backups 16 | . 1 15 Power 1 | . . 1 Propulsion 10 | . 1 9 Utility 1 | . . 1 Weapon 3 | . . 3 Tool/Special 1 | . . 1 Average Slot Usage (%) 92 | . 94 89 Engine 12 | . 12 11 Treads 5 | . 8 . Wheel 19 | . 19 20 Device 11 | . 9 14 Storage 14 | . 14 14 Energy Gun 26 | . 27 23 Special Weapon 1 | . . 4 Peak Build Rating 15 | 6 13 15 Average Rating 10 | 3 10 12 On Entrance 6 | . 6 13 Avg Prop Armor Cover (%) . | . . . Naked Turns . | . . . Heaviest Build 92 | 14 92 92 Greatest Support 40 | 20 40 28 Greatest Overweight (x) 7 | 1 3 7 Average Overweight (x) 2 | . 2 4 Largest Inventory Capacity 25 | 8 25 25 Average Capacity 21 | 6 21 25 Most Carried 22 | 7 21 22 Average Carried 16 | 5 16 20 Final Capacity 25 | 8 25 25 Final Carried 21 | 6 21 19 Class Distribution -------------------- 100% | Mutant Dominant Class ---------------- Mutant | -10/Materials Mutant | -10/Subcaves Resources | -11 -10 -10 ----------- Run | Yrd Mat Sub Matter Collected 418 | 222 156 40 Remotely . | . . . Salvage Created 547 | . 371 176 Parts 33 | . 23 10 Haulers Intercepted 1 | . 1 . Recyclers Shooed 1 | . 1 . Parts Field Recycled . | . . . Retrieved Matter . | . . . Parts Self-Destructed . | . . . Prevented . | . . . Parts Restored . | . . . Kills | -11 -10 -10 ------- Run | Yrd Mat Sub Combat Hostiles Destroyed 16 | . 10 6 Guns 16 | . 10 6 Classes Destroyed 6 | . 5 1 Worker 2 | . 2 . Hauler 1 | . 1 . Watcher 1 | . 1 . Swarmer 3 | . 3 . Grunt 7 | . 7 . Subdweller 6 | . . 6 Best Kill Streak 3 | . 3 2 Combat Bots Only 3 | . 3 2 Max Kills in Single Turn 1 | . 1 1 Gunslinging . | . . . Exploded . | . . . Melee . | . . . Uniques/NPCs Destroyed . | . . . Combat | -11 -10 -10 -------- Run | Yrd Mat Sub Hostile Shots Fired 67 | . 31 36 Missed 18 | . 8 10 Hits 49 | . 23 26 Projectile 49 | . 23 26 Critical Strikes 1 | . . 1 Damage Taken 948 | . 345 603 Core 266 | . 74 192 Absorbed by Shields . | . . . Core Remaining (%) 100 | 100 . . Volleys Fired 70 | . 40 30 Largest 2 | . 2 2 Hottest 165 | . 130 165 Shots Fired 120 | . 69 51 Gun 111 | . 69 42 Cannon . | . . . Launcher . | . . . Special 9 | . . 9 Kinetic . | . . . Thermal 120 | . 69 51 Explosive . | . . . Electromagnetic . | . . . Robot Hit Streak 17 | . 8 17 Robot Miss Streak 6 | . 6 2 Penetration Max . | . . . Secondary Targets . | . . . Shots Hit Robots 87 | . 59 28 Core Hits 94 | . 56 38 Critical Kills . | . . . Critical Parts Destroyed . | . . . Critical Strikes 1 | . 1 . Burn 1 | . 1 . Melee Attacks . | . . . Impact . | . . . Slashing . | . . . Piercing . | . . . Sneak Attacks . | . . . Combat Hostiles . | . . . Follow-up Attacks . | . . . Damage Inflicted 1220 | . 685 535 Guns 1220 | . 685 535 Cannons . | . . . Explosions . | . . . Melee . | . . . Ramming . | . . . Kinetic . | . . . Thermal 1220 | . 685 535 Explosive . | . . . Electromagnetic . | . . . Impact . | . . . Slashing . | . . . Piercing . | . . . Highest Corruption 1 | . 1 1 Average Corruption 1 | . 1 1 Corruption Purged . | . . . Corruption Blocked . | . . . Effects 6 | . 4 2 Matter Fused 1 | . 1 . Heat Flow Errors 2 | . 2 . Energy Discharges 1 | . . 1 Parts Rejected 1 | . . 1 Weapon Failures 1 | . 1 . Overload Shots . | . . . Overflow Damage . | . . . Projectiles . | . . . Explosions . | . . . Melee . | . . . Knockbacks . | . . . Impact . | . . . Kinetic . | . . . Secondary . | . . . Self-Inflicted Damage . | . . . Shots . | . . . Rammed . | . . . Targets Rammed . | . . . Kicked . | . . . Crushed . | . . . Highest Temperature 353 | . 353 63 Average Temperature 116 | . 130 22 Received Heat Transfer 261 | . 138 123 Effects 5 | . 5 . Energy Bleed 3 | . 3 . Interference 2 | . 2 . Siege Activations . | . . . Martial Activations . | . . . Shielding Activations . | . . . Robots Disrupted . | . . . Combat Hostiles . | . . . Robots Corrupted . | . . . Combat Hostiles . | . . . Parts Fried . | . . . Impact Corruptions . | . . . Robots Melted . | . . . Combat Hostiles . | . . . Parts Melted 1 | . 1 . Heat Transferred 1861 | . 1196 665 Parts Sabotaged . | . . . Parts Stolen . | . . . Parts Stripped . | . . . Power Chain Reactions . | . . . Alert | -11 -10 -10 ------- Run | Yrd Mat Sub Maximum Alert Level . | . . . Low Security (%) 100 | 100 100 . Level 1 . | . . . Level 2 . | . . . Level 3 . | . . . Level 4 . | . . . Level 5 . | . . . High Security . | . . . Max Security . | . . . Peak Influence 65 | . 65 . Initial . | . . . Average 17 | . 19 . Influence Increases 264 | . 264 . Destroy 0b10 Robot/C 200 | . 200 . Destroy 0b10 Robot/NC 20 | . 20 . Destroy Leader 44 | . 44 . Influence Decreases 264 | . 264 . Time Decay 263 | . 263 . Lost Part 1 | . 1 . Squads Dispatched 1 | . 1 . Investigation . | . . . Extermination . | . . . Reinforcement 1 | . 1 . Assault . | . . . Garrison . | . . . Intercept . | . . . Searches Triggered . | . . . Construction Impeded . | . . . Haulers Reinforced . | . . . Active Scanning Responses . | . . . Cargo Convoy Interrupts . | . . . Stealth | -11 -10 -10 --------- Run | Yrd Mat Sub Distress Signals 1 | . 1 . Communications Jammed . | . . . Distress Signals . | . . . Times Spotted 24 | . 17 7 Peak Tracking Total 3 | . 3 3 Tactical Retreats . | . . . Traps | -11 -10 -10 ------- Run | Yrd Mat Sub Traps Triggered 3 | . 3 . Indirectly . | . . . Trap Hack Attempts . | . . . Triggered . | . . . Disarmed . | . . . Reprogrammed . | . . . Reused . | . . . Traps Extracted . | . . . Installed . | . . . Triggered . | . . . Machines | -11 -10 -10 ---------- Run | Yrd Mat Sub Machines Disabled . | . . . Max in Single Turn . | . . . Machines Repaired . | . . . Machines Dismantled . | . . . Machines Sabotaged . | . . . Overloaded Fab Kills . | . . . Hacking | -11 -10 -10 --------- Run | Yrd Mat Sub Machines Accessed . | . . . Terminals . | . . . Fabricators . | . . . Repair Stations . | . . . Recycling Units . | . . . Scanalyzers . | . . . Garrison Access . | . . . Total Hacks . | . . . Successful . | . . . Failed . | . . . Catastrophic . | . . . Database Lockouts . | . . . Manual . | . . . Terminals . | . . . Fabricators . | . . . Repair Stations . | . . . Recycling Units . | . . . Scanalyzers . | . . . Garrison Access . | . . . Terminal Hacks . | . . . Fabricator Hacks . | . . . Repair Station Hacks . | . . . Recycling Unit Hacks . | . . . Scanalyzer . | . . . Garrison Access Hacks . | . . . Unauthorized Hacks . | . . . Terminals . | . . . Fabricators . | . . . Repair Stations . | . . . Recycling Units . | . . . Scanalyzers . | . . . Garrison Access . | . . . Data Cores Recovered . | . . . Used . | . . . Hacking Detections . | . . . Full Trace Events . | . . . Feedback Events . | . . . Feedback Blocked . | . . . Robot Schematics Acquired . | . . . Robots Built . | . . . Authchips . | . . . Time . | . . . Total Robot Build Rating . | . . . Part Schematics Acquired . | . . . Parts Built . | . . . Authchips . | . . . Time . | . . . Total Part Build Rating . | . . . Part Studies Acquired . | . . . Parts Repaired . | . . . Time . | . . . Parts Recycled . | . . . Recycled Matter . | . . . Retrieved Matter . | . . . Retrieved Components . | . . . Parts Scanalyzed . | . . . Part Schematics Acquired . | . . . Parts Damaged . | . . . Bothacking | -11 -10 -10 ------------ Run | Yrd Mat Sub Used RIF Installer . | . . . Robots Hacked . | . . . Non-combat . | . . . Combat . | . . . Robot Hacks Applied . | . . . Relay Couplers Released . | . . . Fabnet Peak Effective % . | . . . Robots Rewired . | . . . Allies Hacked . | . . . Hacks Repelled . | . . . Allies | -11 -10 -10 -------- Run | Yrd Mat Sub Total Allies . | . . . Largest Group . | . . . Highest-Rated Group . | . . . Highest-Rated Ally . | . . . Total Orders . | . . . Ally Attacks . | . . . Total Damage . | . . . Kills . | . . . Allies Corrupted . | . . . Allies Melted . | . . . Intel | -11 -10 -10 ------- Run | Yrd Mat Sub Active Infowar (turns) . | . . . Robot Analysis Total . | . . . Derelict Logs Recovered . | . . . Drone Launches . | . . . Drone Recoveries . | . . . Exploration | -11 -10 -10 ------------- Run | Yrd Mat Sub Turns Passed 1154 | 74 775 305 Spaces Moved 589 | 51 430 108 Core 14 | 14 . . Treads 85 | . 85 . Legs 47 | 37 10 . Wheels 443 | . 335 108 Hover . | . . . Flight . | . . . Fastest Speed 50 | 50 120 135 Average Speed 143 | 107 143 160 Slowest Speed 195 | 190 160 195 Overloaded Moves . | . . . Propulsion Burnouts . | . . . Robots Hopped . | . . . Potential Cave-ins . | . . . Cave-ins Triggered . | . . . Exploration Rate (%) 29 | 4 73 10 Regions Visited 2 Branch Regions 1 Pre-discovered Areas . | . . . Known Exits Taken . | . . . Unknown Exits Taken 2 | 1 1 . Scrap Searched 2 | . . 2 Spaces Dug . | . . . Terrain Destroyed . | . . . Melee . | . . . Projectile . | . . . AOE . | . . . Terrain Rammed . | . . . Walls Destroyed . | . . . Machines Disabled . | . . . Actions | -11 -10 -10 --------- Run | Yrd Mat Sub Total 755 | 67 520 168 Wait 35 | 3 12 20 Move 587 | 50 429 108 Hop . | . . . Pick Up 30 | 7 21 2 Fast Attach 7 | 5 2 . Attach 6 | 1 1 4 Detach . | . . . Swap 12 | 1 7 4 Drop 8 | . 8 . Fire 70 | . 40 30 Melee . | . . . Ram . | . . . Kick . | . . . Crush . | . . . Escape Stasis . | . . . Rewire . | . . . Trap . | . . . Miscellaneous . | . . . Route ------- -11/Scrapyard -10/Materials (discovered 4 exits: [*Mat x2] / [*Min] / [*Sub]) -10/Subcaves (discovered 1 exit: [*Mat]) History --------- Turn | Location | Event 9 | -11/Scrapyard | Discovered new exit (range 15) 75 | -11/Scrapyard | Entered Materials 336 | -10/Materials | Build established: Mutant 404 | -10/Materials | Discovered new exit (range 8) 502 | -10/Materials | Discovered new exit (range 10) 613 | -10/Materials | Discovered new exit (range 8) 839 | -10/Materials | Discovered new exit (range 9) 850 | -10/Materials | Entered Subcaves 855 | -10/Subcaves | Discovered new exit (range 15) 912 | -10/Subcaves | Core integrity fell below 50% 949 | -10/Subcaves | Ambushed by Subdwellers from Twisted Machinery 1133 | -10/Subcaves | Visited 4L-MR0's lab 1144 | -10/Subcaves | Core integrity fell below 20% 1155 | -10/Subcaves | Destroyed by S3-0KZ(R) with Subdweller Laser Last Messages --------------- 00969_ Subatomizers dissect the Sub. Optics. 00969_ 6X-U3C(R) destroyed. 00976_ Acquired Disposable Heat Sink. 00981_ Acquired Sub. Power Source. 00983_ System corrupted: Energy discharge (-14). 01097_ Searching scrap... 01097_ Found Sub. Optics. 01097_ Found Battle Rifle. 01097_ Found 32 Matter. 01098_ Acquired 20 matter. 01099_ Searching scrap... 01099_ Found Sub. Laser. 01099_ Found 32 Matter. 01104_ Acquired 10 matter. 01110_ System corrupted: Heat Sink rejected. 01142_ Arm. Wheel destroyed. 01143_ TA-6E2(R) destroyed. 01146_ LQ-J9S(R) destroyed. 01154_ S3-0KZ(R) affixes Scrap Shield Fragment to Scrap Shield. Map ----- +----------------------------------------------------+ | | | | | | | | | | | | | | | | | | | | | | | | | | | | | | | ?????????????????????????????????????????????????? | | ?????????????????????????????????????????????????? | | ?????????????????????????????????????????????????? | | ?????????????????????????????????????????????????? | | ?????????????????????????????????????????????????? | | ?????????????????????????????????????????????????? | | ??????????????????#####??????????????????????????? | | ??????????????# "#"""""??????????????????????????? | | ??????????????#=" "X" ?????????????????????????? | | ????????????????# R!#####????????????????????? | | ????????????????# &%%/@ #????????????????????? | | ????????????????##########< #????????????????????? | | ?????????????#$###????####< #????????????????????? | | ?????????????#" ""#####"%%!<#????????????????????? | | ??????????????#" #![[ <#????????????????????? | | ?????????????????## ##????????????????????? | | ?????????????????# ##"""##?????????????????????? | | ????????????##?### "#####??????????????????????? | | ????????????# ## " ##???????????????????????? | | ????????????#""" #????????????????????? | | ?????####???## ########### ?????????????????? | | ?????#""##??## ##??????????? ????????????????? | | ?????#"""#### ####??????????????????????????? | | ?????# #"#" #??????????????????????????? | | ?????# " " " #????????????????????????? | | ?????# "" "" #???????????????????????? | | ?????# "##"""" #???????????????????????? | | ?????## ###"" ## ?????????????????????? | | ?????#" ####" #?# ?????????????????????? | | ?????## ##"#"""" ##?? ?????????????????????? | | ??????# """""" ##???? ?????????????????????? | | ??????# " """ ##?????? ?????????????????????? | | ??????# # # ###???????????????????????????????? | | ??????###### #?????????????????????????????????? | | ????????### #?????????????????????????????????? | +----------------------------------------------------+ Best States ------------- Heat Dissipation 35 Coolant Potential 50 Energy Generation 15 Energy Capacity 250 Matter Stores 300 Matter Capacity 300 Sight Range 16 Terrain Scan Density 10 Evasion (%) 50 Recoil Reduction 2 Item Schematics ----------------- None Robot Schematics ------------------ None Fabricated ------------ Nothing Repaired ---------- Nothing Studied --------- None Alien Tech Used ----------------- None Achievements -------------- None Challenges ------------ None Game ------ Seed HellfireSchematicMinigun Manual? 0 Play Time 00:10:58 Cumulative 275.3 hours Start 2025.10.28 @ 16:19:25 End 2025.10.28 @ 16:46:42 Sessions 1 Manual Loads 0 Difficulty Rogue Special Mode None Game No. 439 Rogue 439 Adventurer 0 Explorer 0 Win Type - Total 1 Types 1/0/0/0/0/0/0/0/0/0 Lore% 64 Gallery% 62 Achievement% 27 Wizard Run 0 Options --------- Layout 1 ASCII 0 Keyboard 0 Movement Mouse Keybinds 0 Fullscreen 2 Font 24/Smallcaps Map View 50x35 Zoom Use 0% Tactical HUD 1 Map Filters NONE Filters NONE Steam 1 RUN: d8a18884-145b-45b9-8db1-dbfad92f8b8b